bitfinex/quotes_BTCUSD_20250601
["timestamp","ask_amount","ask_price","bid_price","bid_amount"]
[1748775214602,0.38215682,103880.0,103870.0,1.10893201]
[1748775215215,0.38215682,103880.0,103870.0,1.0818983]
[1748775215419,0.38215682,103880.0,103870.0,1.1089301]
[1748775215630,0.38215682,103880.0,103870.0,1.1269513]
[1748775215832,0.38215682,103880.0,103870.0,1.12019332]
[1748775216039,0.38215682,103880.0,103870.0,1.11118275]
[1748775216464,0.38215682,103880.0,103870.0,1.1359619]
[1748775216629,0.38215682,103880.0,103870.0,1.11118275]
[1748775217180,0.38215682,103880.0,103870.0,1.16423236]
[1748775217406,0.38215682,103880.0,103870.0,1.14497238]
[1748775217620,0.38215682,103880.0,103870.0,1.12920389]
[1748775217823,0.36655682,103880.0,103870.0,1.11118275]
[1748775218032,0.36655682,103880.0,103870.0,1.1451949]
[1748775218234,0.36655682,103880.0,103870.0,1.17898455]
[1748775218425,0.36655682,103880.0,103870.0,1.16997403]
[1748775218626,0.36655682,103880.0,103870.0,1.1789846]
[1748775218974,0.36655682,103880.0,103870.0,1.17898463]
[1748775219173,0.36655682,103880.0,103870.0,1.178986]
[1748775219524,0.36655682,103880.0,103870.0,1.1451949]
[1748775219734,0.36655682,103880.0,103870.0,1.178986]
[1748775220355,0.34450197,103880.0,103870.0,1.178986]
[1748775220712,0.34450197,103880.0,103870.0,1.16997504]
[1748775220912,0.34450197,103880.0,103870.0,1.1451949]
[1748775221119,0.34450197,103880.0,103870.0,1.16321667]
[1748775221367,0.34450197,103880.0,103870.0,1.16321714]
[1748775221516,0.34450197,103880.0,103870.0,1.16321716]
[1748775221859,0.34450197,103880.0,103870.0,1.16096431]
[1748775222081,0.34450197,103880.0,103870.0,1.18799845]
[1748775222660,0.34450197,103880.0,103870.0,1.16096431]
[1748775222837,0.34450197,103880.0,103870.0,1.1879984]
[1748775223061,0.34450197,103880.0,103870.0,1.17898702]
[1748775223281,0.34450197,103880.0,103870.0,1.18123986]
[1748775223617,0.34450197,103880.0,103870.0,1.1722285]
[1748775224328,0.34450197,103880.0,103870.0,1.18799917]
[1748775224536,0.34450197,103880.0,103870.0,1.19025213]
[1748775224958,0.34450197,103880.0,103870.0,1.19025199]
[1748775225168,0.34450197,103880.0,103870.0,1.1878285]
[1748775225382,0.34450197,103880.0,103870.0,1.2209517]
[1748775225592,0.32044097,103880.0,103870.0,1.18814712]
[1748775225802,0.3110596,103880.0,103870.0,1.22220635]
[1748775226010,0.3110596,103880.0,103870.0,1.18814712]
[1748775226221,0.3110596,103880.0,103870.0,1.22193864]
[1748775226465,0.3110596,103880.0,103870.0,1.20391649]
[1748775226669,0.3110596,103880.0,103870.0,1.22220583]
[1748775226886,0.3110596,103880.0,103870.0,0.81287703]
[1748775227099,0.3110596,103880.0,103870.0,1.19182583]
[1748775227511,0.3110596,103880.0,103870.0,1.20812583]
[1748775227736,0.3110596,103880.0,103870.0,1.23068431]
[1748775227938,0.3110596,103880.0,103870.0,1.23293714]
[1748775228098,0.3110596,103880.0,103870.0,1.22392583]
[1748775228302,0.3110596,103880.0,103870.0,1.23068466]
[1748775228646,0.3110596,103880.0,103870.0,1.22392583]
[1748775229040,0.3110596,103880.0,103870.0,1.23293759]
[1748775229188,0.3110596,103880.0,103870.0,1.22392583]
[1748775229590,0.3110596,103880.0,103870.0,1.24195114]
[1748775229800,0.3110596,103880.0,103870.0,1.23068537]
[1748775230010,0.3110596,103880.0,103870.0,1.22392583]
[1748775230293,0.3110596,103880.0,103870.0,1.24195508]
[1748775230469,0.3110596,103880.0,103870.0,1.22392583]
[1748775231665,0.30203881,103880.0,103870.0,1.22392583]
[1748775232287,0.30203881,103880.0,103870.0,1.23068675]
[1748775232441,0.30203881,103880.0,103870.0,1.23068676]
[1748775232648,0.30203881,103880.0,103870.0,1.22392583]
[1748775233052,0.30203881,103880.0,103870.0,1.23294039]
[1748775233257,0.30203881,103880.0,103870.0,1.23294038]
[1748775233462,0.30203881,103880.0,103870.0,1.23068674]
[1748775233641,0.30203881,103880.0,103870.0,1.24871583]
[1748775233996,0.30203881,103880.0,103870.0,1.23068673]
[1748775234228,5.22147614,103920.0,103890.0,0.21176179]
[1748775234229,4.82707212,103920.0,103890.0,0.21176179]
[1748775234386,0.01924862,103900.0,103890.0,0.39897609]
[1748775234587,0.0288727,103900.0,103890.0,0.72944112]
[1748775234790,0.0288727,103900.0,103890.0,0.72328419]
[1748775235002,0.02886954,103910.0,103900.0,0.22135275]
[1748775235227,0.03849316,103910.0,103900.0,0.32397052]
[1748775235436,0.03849316,103910.0,103900.0,0.31720705]
[1748775235598,0.42346316,103910.0,103900.0,0.3262246]
[1748775235802,0.42346372,103910.0,103900.0,0.30758306]
[1748775236005,0.61593797,103910.0,103900.0,0.30758306]
[1748775236226,0.42546372,103910.0,103900.0,0.3352422]
[1748775236425,0.43508743,103910.0,103900.0,0.32397018]
[1748775236599,0.43508743,103910.0,103900.0,0.31660044]
[1748775236820,0.6083151,103910.0,103900.0,0.29795889]
[1748775236996,0.6083151,103910.0,103900.0,0.34139832]
[1748775237197,0.6421151,103910.0,103900.0,0.34139832]
[1748775237391,0.6421151,103910.0,103900.0,0.31720732]
[1748775237593,0.6421151,103910.0,103900.0,0.33524208]
[1748775237825,0.44964085,103910.0,103900.0,0.36064657]
[1748775238023,0.6421151,103910.0,103900.0,0.33524204]
[1748775238232,0.6421151,103910.0,103900.0,0.32622469]
[1748775238655,0.6421151,103910.0,103900.0,0.31434618]
[1748775238859,0.6421151,103910.0,103900.0,0.30758315]
[1748775239484,0.6421151,103910.0,103900.0,0.31434618]
[1748775239678,0.6421151,103910.0,103900.0,0.31720723]
[1748775240006,0.6421151,103910.0,103900.0,0.31434617]
[1748775240208,0.6421151,103910.0,103900.0,0.30758315]
[1748775240541,0.6421151,103910.0,103900.0,0.32561788]
[1748775240744,0.62286796,103910.0,103900.0,0.29795889]
[1748775241087,0.62286796,103910.0,103900.0,0.30697628]
[1748775241294,0.62286796,103910.0,103900.0,0.33177411]
[1748775242183,0.62286796,103910.0,103900.0,0.32501116]
[1748775242390,0.67064746,103910.0,103900.0,0.29795889]
[1748775242736,0.67064746,103910.0,103900.0,0.30697632]
[1748775242971,0.67064746,103910.0,103900.0,0.29795889]
[1748775243225,0.67064746,103910.0,103900.0,0.31373974]
[1748775243428,0.67064746,103910.0,103900.0,0.30697652]
[1748775243726,0.62286796,103910.0,103900.0,0.29795889]
[1748775243934,0.62286796,103910.0,103900.0,0.30472211]
[1748775244167,0.62286796,103910.0,103900.0,0.31660078]
[1748775244351,0.62286796,103910.0,103900.0,0.30758315]
[1748775244806,0.00962482,103890.0,103880.0,0.67718618]
[1748775245019,0.02887492,103890.0,103880.0,1.05912325]
[1748775245225,0.02887492,103890.0,103880.0,1.06588726]
[1748775245226,0.42924483,103890.0,103880.0,1.06588726]
[1748775245432,0.43887067,103890.0,103880.0,0.41824833]
[1748775245642,0.45527067,103890.0,103880.0,0.71420833]
[1748775245857,0.38497,103890.0,103880.0,0.72974918]
[1748775246059,0.39459491,103890.0,103880.0,0.76164918]
[1748775246265,0.39459491,103890.0,103880.0,0.7716682]
[1748775246477,0.38497,103890.0,103880.0,0.76264918]
[1748775246677,0.39459482,103890.0,103880.0,0.74724918]
[1748775247289,0.40421982,103890.0,103880.0,0.74724918]
[1748775247687,0.39459482,103890.0,103880.0,0.74724918]
[1748775247922,0.39459482,103890.0,103880.0,0.76303243]
[1748775248133,0.39459482,103890.0,103880.0,0.74724918]
[1748775248467,0.40421982,103890.0,103880.0,0.7540135]
[1748775248675,0.39459482,103890.0,103880.0,0.75626828]
[1748775248876,0.40421982,103890.0,103880.0,0.76303253]
[1748775249146,0.40421982,103890.0,103880.0,0.36895004]
[1748775249294,0.39459482,103890.0,103880.0,0.74720918]
[1748775249516,0.40421982,103890.0,103880.0,0.75397481]
[1748775249716,0.39459482,103890.0,103880.0,0.74720918]
[1748775249919,0.40421992,103890.0,103880.0,0.76299555]
[1748775250086,0.40421992,103890.0,103880.0,0.75397483]
[1748775250285,0.40421982,103890.0,103880.0,0.75397483]
[1748775250510,0.40421982,103890.0,103880.0,0.74720918]
[1748775251154,0.40421982,103890.0,103880.0,0.75623005]
[1748775251382,0.40421982,103890.0,103880.0,0.75397486]
[1748775251557,0.40421982,103890.0,103880.0,0.7562291]
[1748775251764,0.40421982,103890.0,103880.0,0.74720918]
[1748775251962,0.40421982,103890.0,103880.0,0.7562279]
[1748775252102,0.40421982,103890.0,103880.0,0.75622768]
[1748775252307,0.40421982,103890.0,103880.0,0.770473]
[1748775252507,0.40421982,103890.0,103880.0,0.76370918]
[1748775252731,0.40421982,103890.0,103880.0,0.77047306]
[1748775252941,0.40421982,103890.0,103880.0,0.77272763]
[1748775253137,0.40421982,103890.0,103880.0,0.77272762]
[1748775253316,0.40421982,103890.0,103880.0,0.76370918]
[1748775253901,0.40421982,103890.0,103880.0,0.77272762]
[1748775254109,0.40421982,103890.0,103880.0,0.77949154]
[1748775254591,0.40421982,103890.0,103880.0,0.77949155]
[1748775254841,0.40421982,103890.0,103880.0,0.77949157]
[1748775254978,0.40421982,103890.0,103880.0,0.76370918]
[1748775255417,0.40421982,103890.0,103880.0,0.77047304]
[1748775255599,0.4138451,103890.0,103880.0,0.75385304]
[1748775255806,0.41384501,103890.0,103880.0,0.73735304]
[1748775256003,0.41384501,103890.0,103880.0,0.75313544]
[1748775256329,0.43877039,103890.0,103880.0,0.44155304]
[1748775256528,0.43571982,103890.0,103880.0,0.73735304]
[1748775256789,0.41384501,103890.0,103880.0,0.73735304]
[1748775256942,0.43309604,103890.0,103880.0,0.73735304]
[1748775257156,0.41384501,103890.0,103880.0,0.73735304]
[1748775257347,0.42347039,103890.0,103880.0,0.74637154]
[1748775257546,0.42347039,103890.0,103880.0,0.74411693]
[1748775257776,0.42347039,103890.0,103880.0,0.73735304]
[1748775257981,0.42347039,103890.0,103880.0,0.75313545]
[1748775258414,0.42347039,103890.0,103880.0,0.74637156]
[1748775258569,0.40421982,103890.0,103880.0,0.75313493]
[1748775258774,0.4138451,103890.0,103880.0,0.76843493]
[1748775258979,0.4138451,103890.0,103880.0,0.76843486]
[1748775259284,0.40421982,103890.0,103880.0,0.75265304]
[1748775259462,0.41384501,103890.0,103880.0,0.75265304]
[1748775259640,0.42347039,103890.0,103880.0,0.75265304]
[1748775259840,0.42347039,103890.0,103880.0,0.76167132]
[1748775260109,0.42347039,103890.0,103880.0,0.75265304]
[1748775260411,0.42347029,103890.0,103880.0,0.75265304]
[1748775260590,0.42347029,103890.0,103880.0,0.76843515]
[1748775261002,0.42347029,103890.0,103880.0,0.7684352]
[1748775261196,0.42347029,103890.0,103880.0,0.76167143]
[1748775261421,0.42347029,103890.0,103880.0,0.7616714]
[1748775261575,0.42347029,103890.0,103880.0,0.75265304]
[1748775263021,0.41384501,103890.0,103880.0,0.75265304]
[1748775263942,0.41384501,103890.0,103880.0,0.75941676]
[1748775264168,0.41384501,103890.0,103880.0,0.76167134]
[1748775264291,0.41384501,103890.0,103880.0,0.75265304]
[1748775264694,0.41384501,103890.0,103880.0,0.75941669]
[1748775264895,0.41384501,103890.0,103880.0,0.76843478]
[1748775265152,0.41384501,103890.0,103880.0,0.75941663]
[1748775265378,0.41384501,103890.0,103880.0,0.75941658]
[1748775265499,0.41384501,103890.0,103880.0,0.75265304]
[1748775267026,0.41384501,103890.0,103880.0,0.76167108]
[1748775267242,0.41384501,103890.0,103880.0,0.75265304]
[1748775268158,0.41384501,103890.0,103880.0,0.45733476]
[1748775268335,0.41384501,103890.0,103880.0,0.73735304]
[1748775268759,0.43857039,103890.0,103880.0,0.35921108]
[1748775269003,0.45507039,103890.0,103880.0,0.74383659]
[1748775269222,0.45507039,103890.0,103880.0,0.74609111]
[1748775269387,0.43857039,103890.0,103880.0,0.73707304]
[1748775269588,0.43857029,103890.0,103880.0,0.74609125]
[1748775269798,0.44819567,103890.0,103880.0,0.7460913]
[1748775270021,0.43857029,103890.0,103880.0,0.74383675]
[1748775270273,0.43857029,103890.0,103880.0,0.74383679]
[1748775270446,0.43857029,103890.0,103880.0,0.73707304]
[1748775270622,0.43857029,103890.0,103880.0,0.7438369]
[1748775270944,0.43857029,103890.0,103880.0,0.74383693]
[1748775271152,0.44819567,103890.0,103880.0,0.73707304]
[1748775271356,0.44819567,103890.0,103880.0,0.74383693]
[1748775271506,0.44819567,103890.0,103880.0,0.75285545]
[1748775271711,0.43857029,103890.0,103880.0,0.73707304]
[1748775271951,0.42347029,103890.0,103880.0,0.73707304]
[1748775272721,0.42347029,103890.0,103880.0,0.74609185]
[1748775272915,0.42347029,103890.0,103880.0,0.73707304]
[1748775273201,0.61598216,103890.0,103880.0,0.71782127]
[1748775273403,0.42347085,103890.0,103880.0,0.72744711]
[1748775274001,0.42347085,103890.0,103880.0,0.73646607]
[1748775274164,0.42347085,103890.0,103880.0,0.72744711]
[1748775274370,0.42347085,103890.0,103880.0,0.73646608]
[1748775274946,0.42347085,103890.0,103880.0,0.72744711]
[1748775275127,0.42347085,103890.0,103880.0,0.73421134]
[1748775275364,0.62873197,103890.0,103880.0,0.10461816]
[1748775275583,0.62873197,103890.0,103880.0,0.11363928]
[1748775275791,0.62873197,103890.0,103880.0,0.00876386]
[1748775275965,0.62873197,103890.0,103880.0,0.00776386]
[1748775276373,0.62873197,103890.0,103880.0,0.00976386]
[1748775276775,0.62873197,103890.0,103880.0,0.01778541]
[1748775276938,0.62873197,103890.0,103880.0,0.00876386]
[1748775277534,0.62873197,103890.0,103880.0,0.01353002]
[1748775277741,0.62873197,103890.0,103880.0,0.00676386]
[1748775279403,0.62873197,103890.0,103880.0,0.01353022]
[1748775279607,0.62873197,103890.0,103880.0,0.00676386]
[1748775280106,0.62873197,103890.0,103880.0,0.01578567]
[1748775280309,0.62873197,103890.0,103880.0,0.00676386]
[1748775280511,0.62873197,103890.0,103880.0,0.02255203]
[1748775280898,0.62873197,103890.0,103880.0,0.01353022]
[1748775281235,0.62873197,103890.0,103880.0,0.00676386]
[1748775281391,0.62873197,103890.0,103880.0,0.01578567]
[1748775281940,0.62873197,103890.0,103880.0,0.01353022]
[1748775282086,0.62873197,103890.0,103880.0,0.01578567]
[1748775282281,0.62873197,103890.0,103880.0,0.00676386]
[1748775282929,0.62873197,103890.0,103880.0,0.01578567]
[1748775283153,0.62873197,103890.0,103880.0,0.00676386]
[1748775283744,0.72124319,103890.0,103880.0,0.00676386]
[1748775284328,0.72124319,103890.0,103880.0,0.01353075]
[1748775284541,0.72124319,103890.0,103880.0,0.02255333]
[1748775284740,0.72124319,103890.0,103880.0,0.00676386]
[1748775284964,0.72324319,103890.0,103880.0,0.00676386]
[1748775285479,0.72424319,103890.0,103880.0,0.00676386]
[1748775286042,0.72424319,103890.0,103880.0,0.01350749]
[1748775286247,0.75314419,103890.0,103880.0,0.00676386]
[1748775287320,0.75314419,103890.0,103880.0,0.01350755]
[1748775287515,0.75314419,103890.0,103880.0,0.00676386]
[1748775287719,0.75314419,103890.0,103880.0,0.01575544]
[1748775287962,0.75314419,103890.0,103880.0,0.00676386]
[1748775289438,0.75314419,103890.0,103880.0,0.01350236]
[1748775289643,0.75314419,103890.0,103880.0,0.02248703]
[1748775290501,0.75314419,103890.0,103880.0,0.00676386]
[1748775290675,0.75314419,103890.0,103880.0,0.02248703]
[1748775291314,0.75314419,103890.0,103880.0,0.02249017]
[1748775292926,0.75314419,103890.0,103880.0,0.02253906]
[1748775293301,0.75314419,103890.0,103880.0,0.01577826]
[1748775293734,0.75314419,103890.0,103880.0,0.02253996]
[1748775293970,0.75314419,103890.0,103880.0,0.02254116]
[1748775294364,0.75314419,103890.0,103880.0,0.02254131]
[1748775294793,0.75314419,103890.0,103880.0,0.01352584]
[1748775294951,0.75314419,103890.0,103880.0,0.02254182]
[1748775295560,0.75314419,103890.0,103880.0,0.02254117]
[1748775295773,0.75314419,103890.0,103880.0,0.01352518]
[1748775295967,0.75314419,103890.0,103880.0,0.00676386]
[1748775296222,0.75314419,103890.0,103880.0,0.01577894]
[1748775296450,0.75314419,103890.0,103880.0,0.00676386]
[1748775296673,0.75314419,103890.0,103880.0,0.02254032]
[1748775296877,0.75314419,103890.0,103880.0,0.00676386]
[1748775297132,0.75314419,103890.0,103880.0,0.02254032]
[1748775297362,0.75314419,103890.0,103880.0,0.00676386]
[1748775298258,0.75314419,103890.0,103880.0,0.01352522]
[1748775298451,0.75314419,103890.0,103880.0,0.015779]
[1748775298691,0.75314419,103890.0,103880.0,0.00676386]
[1748775298924,0.75314419,103890.0,103880.0,0.01352522]
[1748775299365,0.75314419,103890.0,103880.0,0.00676386]
[1748775300698,0.75314419,103890.0,103880.0,0.02254043]
[1748775300911,0.84899849,103890.0,103880.0,0.02254043]
[1748775301109,0.84899849,103890.0,103880.0,0.02254051]
[1748775301232,0.84899849,103890.0,103880.0,0.00676386]
[1748775302244,0.84899849,103890.0,103880.0,0.0157784]
[1748775302448,0.94027849,103890.0,103880.0,0.0225393]
[1748775302697,0.94027849,103890.0,103880.0,0.0157784]
[1748775302934,0.94027849,103890.0,103880.0,0.02253931]
[1748775303310,0.94027849,103890.0,103880.0,0.0157784]
[1748775303521,0.94027849,103890.0,103880.0,0.02253931]
[1748775303730,1.28027849,103890.0,103880.0,0.02253931]
[1748775305004,1.28027849,103890.0,103880.0,0.02253661]
[1748775305201,1.28027849,103890.0,103880.0,0.01577686]
[1748775305441,1.28027849,103890.0,103880.0,0.00676386]
[1748775306596,1.28027849,103890.0,103880.0,0.01352361]
[1748775306846,1.28027849,103890.0,103880.0,0.00676386]
[1748775307357,1.18899849,103890.0,103880.0,0.00676386]
[1748775307604,1.57639849,103890.0,103880.0,0.00676386]
[1748775307848,1.57639849,103890.0,103880.0,0.01352361]
[1748775307966,1.18899849,103890.0,103880.0,0.02253661]
[1748775308373,1.57643849,103890.0,103880.0,0.01352361]
[1748775308682,1.57643849,103890.0,103880.0,0.00676386]
[1748775309343,1.57643849,103890.0,103880.0,0.02253661]
[1748775309987,1.57643849,103890.0,103880.0,0.01352306]
[1748775310189,1.57643849,103890.0,103880.0,0.01577613]
[1748775310410,1.57643849,103890.0,103880.0,0.01352306]
[1748775310411,1.57631849,103890.0,103880.0,0.01352306]
[1748775310622,1.57631849,103890.0,103880.0,0.0130845]
[1748775310830,1.57631849,103890.0,103880.0,0.02209677]
[1748775311866,1.57631849,103890.0,103880.0,0.02209634]
[1748775312226,1.57631849,103890.0,103880.0,0.01533714]
[1748775313137,1.57631849,103890.0,103880.0,0.0063253]
[1748775313364,1.57631849,103890.0,103880.0,0.01533717]
[1748775313823,1.57631849,103890.0,103880.0,0.01533726]
[1748775314475,1.18899849,103890.0,103880.0,0.01533726]
[1748775314685,1.57615849,103890.0,103880.0,0.0063253]
[1748775314894,1.57615849,103890.0,103880.0,0.01533726]
[1748775315499,1.57615849,103890.0,103880.0,0.01533994]
[1748775316441,1.57615849,103890.0,103880.0,0.01534008]
[1748775316832,1.57615849,103890.0,103880.0,0.01534023]
[1748775317025,1.55955849,103890.0,103880.0,0.01534023]
[1748775317410,1.53065749,103890.0,103880.0,0.01534023]
[1748775318103,1.32689197,103890.0,103880.0,0.04674023]
[1748775318304,1.32689197,103890.0,103880.0,0.0377253]
[1748775318439,0.59973197,103890.0,103880.0,0.04673978]
[1748775318624,0.59973197,103890.0,103880.0,0.0467395]
[1748775318873,0.59973197,103890.0,103880.0,0.0377253]
[1748775319510,0.59973197,103890.0,103880.0,0.04673938]
[1748775319719,0.59973197,103890.0,103880.0,0.0377253]
[1748775321095,0.59973197,103890.0,103880.0,0.04674005]
[1748775321306,0.59973197,103890.0,103880.0,0.0377253]
[1748775321941,0.59973197,103890.0,103880.0,0.04673999]
[1748775322118,0.59973197,103890.0,103880.0,0.0377253]
[1748775322729,0.59973197,103890.0,103880.0,0.04448631]
[1748775322931,0.59973197,103890.0,103880.0,0.0377253]
[1748775323674,0.59973197,103890.0,103880.0,0.23025514]
[1748775323901,0.59010669,103890.0,103880.0,0.0377253]
[1748775324514,0.59010669,103890.0,103880.0,0.04448818]
[1748775324721,0.59010669,103890.0,103880.0,0.05350536]
[1748775324921,0.59010669,103890.0,103880.0,0.05349513]
[1748775325251,0.59010669,103890.0,103880.0,0.04673662]
[1748775325453,0.59010669,103890.0,103880.0,0.0377253]
[1748775326382,0.59010669,103890.0,103880.0,0.04448353]
[1748775326582,0.59010669,103890.0,103880.0,0.0377253]
[1748775327776,0.61898198,103890.0,103880.0,0.35437278]
[1748775327992,0.61898272,103890.0,103880.0,0.34536213]
[1748775328391,0.61898272,103890.0,103880.0,0.35437237]
[1748775328595,0.61898272,103890.0,103880.0,0.34536213]
[1748775328794,0.61898272,103890.0,103880.0,0.36113005]
[1748775329350,0.60925007,103890.0,103880.0,0.36113005]
[1748775329556,0.60925007,103890.0,103880.0,0.15896823]
[1748775329695,0.60925007,103890.0,103880.0,0.14995799]
[1748775329904,0.59962479,103890.0,103880.0,0.15896067]
[1748775330102,0.59962479,103890.0,103880.0,0.14933428]
[1748775330551,0.59962479,103890.0,103880.0,0.14933433]
[1748775330999,0.59962479,103890.0,103880.0,0.14933187]
[1748775331203,0.59962479,103890.0,103880.0,0.1335796]
[1748775331398,0.59962479,103890.0,103880.0,0.14932848]
[1748775331600,0.59962479,103890.0,103880.0,0.1335796]
[1748775331952,0.59962479,103890.0,103880.0,0.14257807]
[1748775332308,0.59962479,103890.0,103880.0,0.14257813]
[1748775332735,0.59962479,103890.0,103880.0,0.14932702]
[1748775332845,0.59962479,103890.0,103880.0,0.1335796]
[1748775333053,0.59962479,103890.0,103880.0,0.14032849]
[1748775333265,0.59962479,103890.0,103880.0,0.14257813]
[1748775333472,0.59962479,103890.0,103880.0,0.1335796]
[1748775333889,0.59962479,103890.0,103880.0,0.14257813]
[1748775334085,0.59962479,103890.0,103880.0,0.14032849]
[1748775334313,0.59962479,103890.0,103880.0,0.14257813]
[1748775334519,0.59962479,103890.0,103880.0,0.1335796]
[1748775334714,0.59962479,103890.0,103880.0,0.14032793]
[1748775335074,0.59962479,103890.0,103880.0,0.1335796]
[1748775335274,0.59962479,103890.0,103880.0,0.14032793]
[1748775335474,0.59962479,103890.0,103880.0,0.1335796]
[1748775335677,0.59962479,103890.0,103880.0,0.14932571]
[1748775335827,0.59962479,103890.0,103880.0,0.14032793]
[1748775336962,0.59962479,103890.0,103880.0,0.14707629]
[1748775337162,0.59962479,103890.0,103880.0,0.14032793]
[1748775337774,0.59962479,103890.0,103880.0,0.14932575]
[1748775338181,0.59962479,103890.0,103880.0,0.14032793]
[1748775339430,0.59962479,103890.0,103880.0,0.14707629]
[1748775339633,0.59962479,103890.0,103880.0,0.14032793]
[1748775340443,0.59962479,103890.0,103880.0,0.14707568]
[1748775340640,0.59962479,103890.0,103880.0,0.14032793]
[1748775340869,0.59962479,103890.0,103880.0,0.14707568]
[1748775341103,0.59962479,103890.0,103880.0,0.14032793]
[1748775341517,0.59962479,103890.0,103880.0,0.14707431]
[1748775341896,0.59962479,103890.0,103880.0,0.14032793]
[1748775342095,0.59962479,103890.0,103880.0,0.14932311]
[1748775342301,0.59962479,103890.0,103880.0,0.14707431]
[1748775342682,0.59962479,103890.0,103880.0,0.14032793]
[1748775343305,0.59962479,103890.0,103880.0,0.14707357]
[1748775343487,0.59962479,103890.0,103880.0,0.14932212]
[1748775343821,0.59962479,103890.0,103880.0,0.14032793]
[1748775344040,0.59962479,103890.0,103880.0,0.14932114]
[1748775344248,0.59962479,103890.0,103880.0,0.14032793]
[1748775344857,0.59962479,103890.0,103880.0,0.34922855]
[1748775345064,0.59962479,103890.0,103880.0,0.34248426]
[1748775346252,0.59962479,103890.0,103880.0,0.35147644]
[1748775346453,0.59962479,103890.0,103880.0,0.3492284]
[1748775346655,0.59962479,103890.0,103880.0,0.34922994]
[1748775346857,0.59962479,103890.0,103880.0,0.34248426]
[1748775347878,0.59962479,103890.0,103880.0,0.35211065]
[1748775348134,0.59962479,103890.0,103880.0,0.36112178]
[1748775348318,0.59962479,103890.0,103880.0,0.35211065]
[1748775348891,0.59962479,103890.0,103880.0,0.36112178]
[1748775349101,0.59962479,103890.0,103880.0,0.35211065]
[1748775349505,0.59962479,103890.0,103880.0,0.36173695]
[1748775349721,0.59962479,103890.0,103880.0,0.37136316]
[1748775350540,0.59962479,103890.0,103880.0,0.38098928]
[1748775350738,0.59962479,103890.0,103880.0,0.38774759]
[1748775351119,0.59962479,103890.0,103880.0,0.38098928]
[1748775351301,0.59962479,103890.0,103880.0,0.3967582]
[1748775351442,0.59962479,103890.0,103880.0,0.38713218]
[1748775351637,0.59962479,103890.0,103880.0,0.3871354]
[1748775351843,0.59962479,103890.0,103880.0,0.37750928]
[1748775352057,0.38786245,103890.0,103880.0,0.39205013]
[1748775352278,0.38786245,103890.0,103880.0,0.40167606]
[1748775352279,0.5996246,103890.0,103880.0,0.40167606]
[1748775352483,0.5996246,103890.0,103880.0,0.38713524]
[1748775352705,0.38786245,103890.0,103880.0,0.69132938]
[1748775352913,0.40711293,103890.0,103880.0,0.70710197]
[1748775353113,0.40711293,103890.0,103880.0,0.70709943]
[1748775353285,0.40711293,103890.0,103880.0,0.70033975]
[1748775353484,0.40711293,103890.0,103880.0,0.69132938]
[1748775353723,0.41673774,103890.0,103880.0,0.69132938]
[1748775353936,0.42636312,103890.0,103880.0,0.70709751]
[1748775354353,0.42636312,103890.0,103880.0,0.70709466]
[1748775354504,0.38786245,103890.0,103880.0,1.13141757]
[1748775354712,0.38786245,103890.0,103880.0,1.13817338]
[1748775354931,0.3816082,103890.0,103880.0,1.13817963]
[1748775355081,0.3816082,103890.0,103880.0,1.12240938]
[1748775355282,0.3816082,103890.0,103880.0,1.13142098]
[1748775355481,0.3816082,103890.0,103880.0,1.13142096]
[1748775355684,0.3816082,103890.0,103880.0,1.13817966]
[1748775355899,0.3816082,103890.0,103880.0,1.12916807]
[1748775356096,0.3816082,103890.0,103880.0,1.12240938]
[1748775356301,0.3816082,103890.0,103880.0,1.13142102]
[1748775356513,0.3816082,103890.0,103880.0,1.12916813]
[1748775356737,0.3816082,103890.0,103880.0,1.12240938]
[1748775356938,0.3816082,103890.0,103880.0,1.13142106]
[1748775357296,0.3786082,103890.0,103880.0,1.13142098]
[1748775357475,0.3786082,103890.0,103880.0,1.1391797]
[1748775357858,0.3786082,103890.0,103880.0,1.13242102]
[1748775358058,0.3786082,103890.0,103880.0,1.12340938]
[1748775358259,0.3786082,103890.0,103880.0,1.13242105]
[1748775358468,0.3786082,103890.0,103880.0,1.12340938]
[1748775359546,0.3786082,103890.0,103880.0,1.13241023]
[1748775359746,0.3786082,103890.0,103880.0,1.12340938]
[1748775360725,0.3786082,103890.0,103880.0,1.13016001]
[1748775360926,0.3786082,103890.0,103880.0,1.12340938]
[1748775361137,0.3786082,103890.0,103880.0,1.13015968]
[1748775361337,0.3786082,103890.0,103880.0,1.13916008]
[1748775361546,0.3786082,103890.0,103880.0,1.12340938]
[1748775361753,0.3786082,103890.0,103880.0,1.13015969]
[1748775361954,0.3786082,103890.0,103880.0,1.13916011]
[1748775362357,0.3786082,103890.0,103880.0,1.13916013]
[1748775362569,0.3786082,103890.0,103880.0,1.12340938]
[1748775362843,0.3786082,103890.0,103880.0,1.13240982]
[1748775363046,0.3786082,103890.0,103880.0,1.1301597]
[1748775363266,0.3786082,103890.0,103880.0,1.12340938]
[1748775363611,0.3786082,103890.0,103880.0,1.1324098]
[1748775363825,0.3786082,103890.0,103880.0,1.12340938]
[1748775364155,0.3786082,103890.0,103880.0,1.1301597]
[1748775364314,0.38823293,103890.0,103880.0,1.12332938]
[1748775364516,0.38823293,103890.0,103880.0,0.40552985]
[1748775364517,0.4074835,103890.0,103880.0,0.40552985]
[1748775364719,0.60962028,103890.0,103880.0,0.40202933]
[1748775364919,0.59999546,103890.0,103880.0,0.64709682]
[1748775365121,0.59037036,103890.0,103880.0,0.64422132]
[1748775365344,0.59037036,103890.0,103880.0,0.66572448]
[1748775365557,0.39785905,103890.0,103880.0,0.67597471]
[1748775365813,0.40748461,103890.0,103880.0,0.67597471]
[1748775366013,0.59999592,103890.0,103880.0,0.66572439]
[1748775366200,0.59999592,103890.0,103880.0,0.64709682]
[1748775366505,0.59999592,103890.0,103880.0,0.65672312]
[1748775366675,0.66506037,103890.0,103880.0,0.65672312]
[1748775366887,0.66506037,103890.0,103880.0,0.68497701]
[1748775367102,0.59999592,103890.0,103880.0,0.67597545]
[1748775367269,0.59999592,103890.0,103880.0,0.68497693]
[1748775367464,0.59999592,103890.0,103880.0,0.67597545]
[1748775367958,0.59999592,103890.0,103880.0,0.69235254]
[1748775368139,0.59999592,103890.0,103880.0,0.69460293]
[1748775368349,0.59999592,103890.0,103880.0,0.69560293]
[1748775368548,0.40748461,103890.0,103880.0,0.68660138]
[1748775369139,0.59999592,103890.0,103880.0,0.67697545]
[1748775369342,0.59999592,103890.0,103880.0,0.67635086]
[1748775369550,0.59999592,103890.0,103880.0,0.66734933]
[1748775369960,0.58074507,103890.0,103880.0,0.64809682]
[1748775370369,0.66119892,103890.0,103880.0,0.65484797]
[1748775370570,0.66119892,103890.0,103880.0,0.64809682]
[1748775370967,0.66119892,103890.0,103880.0,0.65709835]
[1748775371178,0.58074507,103890.0,103880.0,0.65772303]
[1748775371422,0.58074507,103890.0,103880.0,0.66447418]
[1748775371594,0.58074507,103890.0,103880.0,0.66672456]
[1748775371974,0.58074507,103890.0,103880.0,0.65772303]
[1748775372174,0.58074507,103890.0,103880.0,0.66672456]
[1748775372448,0.58074507,103890.0,103880.0,0.65772303]
[1748775373206,0.58074507,103890.0,103880.0,0.64809682]
[1748775373602,0.58074507,103890.0,103880.0,0.65709835]
[1748775373834,0.58074507,103890.0,103880.0,0.64809682]